bitfinex/quotes_ETHUSD_20260304
["timestamp","ask_amount","ask_price","bid_price","bid_amount"]
[1772647757778,1.74418478,2153.0,2152.4,0.49334701]
[1772647757980,0.49018478,2153.0,2152.4,1.65483007]
[1772647758290,0.49018478,2153.0,2152.4,0.49334701]
[1772647759292,1.16122439,2152.9,2152.4,0.49334701]
[1772647760769,1.62391216,2152.9,2152.4,0.001]
[1772647761066,0.46268777,2152.8,2152.4,0.001]
[1772647761265,1.62402005,2152.7,2152.4,0.001]
[1772647762299,1.16133228,2152.7,2152.4,0.001]
[1772647764713,4.64532912,2152.8,2152.4,0.001]
[1772647766086,2.41927833,2152.8,2152.4,0.001]
[1772647766802,2.41927833,2152.8,2152.4,0.48396614]
[1772647768409,1.16126744,2152.9,2152.6,0.001]
[1772647768711,7.49117282,2153.0,2152.7,0.48296614]
[1772647769017,0.002,2152.9,2152.7,0.48296614]
[1772647770017,0.002,2152.9,2152.6,0.001]
[1772647770200,0.45824453,2152.9,2152.6,0.001]
[1772647771023,2.87852286,2152.8,2152.6,0.001]
[1772647772120,0.45624453,2152.7,2152.6,0.001]
[1772647773319,1.61757681,2152.7,2152.6,0.001]
[1772647776724,1.61757681,2152.7,2152.0,4.64781559]
[1772647776725,0.45624453,2152.6,2152.0,0.001]
[1772647777822,0.45624453,2152.5,2151.5,0.001]
[1772647778024,0.45624453,2152.3,2151.5,0.001]
[1772647778521,0.45624453,2152.1,2151.5,0.001]
[1772647779030,0.45624453,2151.8,2151.5,0.001]
[1772647779326,1.71424453,2151.7,2151.5,0.001]
[1772647780624,1.16167351,2152.1,2151.5,0.48396614]
[1772647780801,1.61768471,2152.5,2151.7,0.48296614]
[1772647781202,1.61768471,2152.5,2151.7,0.48396614]
[1772647781604,1.61968471,2152.5,2151.7,0.48396614]
[1772647782812,1.61968471,2152.5,2151.7,1.64580109]
[1772647783526,1.265,2152.4,2151.7,1.64580109]
[1772647783737,0.002,2152.5,2151.8,0.48296614]
[1772647783912,1.16344635,2152.5,2151.8,0.48296614]
[1772647785330,0.45824453,2152.5,2151.7,0.001]
[1772647785905,0.45824453,2152.5,2151.8,0.48296614]
[1772647786207,1.259,2152.4,2151.8,0.48296614]
[1772647786840,0.45824453,2152.5,2151.8,0.48296614]
[1772647787534,1.16149414,2152.4,2151.8,0.48296614]
[1772647788630,1.62666326,2152.4,2151.7,0.001]
[1772647789441,1.16149414,2152.4,2151.8,0.45958801]
[1772647790338,0.002,2152.5,2151.7,0.46058801]
[1772647790724,1.16333288,2152.7,2151.8,0.45958801]
[1772647791537,1.16333288,2152.7,2152.0,0.45958801]
[1772647792243,0.002,2152.7,2152.0,0.45958801]
[1772647794223,0.002,2152.7,2152.0,0.46058801]
[1772647794427,0.002,2152.7,2152.0,1.62229559]
[1772647794722,0.002,2152.2,2152.0,1.62229559]
[1772647794921,0.46516912,2152.6,2151.8,0.001]
[1772647795141,0.46516912,2152.1,2151.0,0.001]
[1772647795327,0.46516912,2151.9,2151.1,0.001]
[1772647795534,0.46516912,2151.7,2151.1,0.001]
[1772647797544,1.161926,2151.6,2151.1,0.001]
[1772647798824,1.16191328,2151.7,2151.1,0.36719363]
[1772647799648,1.16191328,2151.7,2150.5,2.49184811]
[1772647799649,0.46516912,2151.6,2150.1,0.36799541]
[1772647799849,0.46516912,2151.3,2150.3,0.36699541]
[1772647801047,0.46516912,2151.3,2150.4,0.001]
[1772647801420,1.74016912,2151.3,2150.4,0.001]
[1772647801748,0.46516912,2151.1,2150.4,0.001]
[1772647803153,1.16214206,2151.2,2150.4,0.001]
[1772647803324,1.62731118,2151.2,2150.4,0.001]
[1772647804154,0.46516912,2151.1,2150.4,0.001]
[1772647805125,1.16214206,2151.2,2150.1,0.001]
[1772647805126,0.46516912,2150.7,2150.1,0.001]
[1772647805430,0.46516912,2150.5,2150.1,0.001]
[1772647805829,0.46516912,2150.5,2149.9,0.001]
[1772647806021,0.46516912,2150.3,2149.6,0.001]
[1772647806746,0.46516912,2150.3,2149.1,0.001]
[1772647806747,0.46516912,2150.1,2149.1,0.001]
[1772647806920,0.46516912,2149.9,2149.1,0.001]
[1772647807626,0.46516912,2149.8,2149.1,0.001]
[1772647807939,1.16295297,2149.7,2149.1,0.001]
[1772647808139,0.46516912,2149.6,2149.1,0.001]
[1772647809629,1.16268254,2150.2,2149.2,0.37616121]
[1772647810134,1.16268254,2150.2,2149.3,1.1631694]
[1772647810333,1.16268254,2150.2,2149.2,0.37616121]
[1772647810553,1.16268254,2150.2,2149.2,1.53938443]
[1772647810554,0.46516912,2150.1,2149.2,1.53938443]
[1772647811064,1.16268254,2150.2,2149.3,0.37686598]
[1772647812267,5.11589928,2150.3,2149.4,1.16311528]
[1772647813460,5.11589928,2150.3,2149.3,1.53999819]
[1772647813669,0.46516912,2150.2,2149.3,1.53999819]
[1772647814567,1.16273661,2150.1,2149.3,1.53999819]
[1772647814881,1.16273661,2150.1,2149.1,0.001]
[1772647814882,0.46516912,2150.0,2149.1,0.001]
[1772647815165,0.46516912,2150.0,2149.2,0.38022445]
[1772647815545,1.16273661,2150.1,2149.2,0.38022445]
[1772647816170,0.46516912,2150.0,2149.1,1.16427054]
[1772647817169,1.16284478,2149.9,2149.1,0.001]
[1772647817382,1.16284478,2149.9,2149.2,0.38152776]
[1772647817678,1.16282336,2150.0,2149.2,0.38152776]
[1772647818753,1.67761709,2150.4,2149.2,0.38152776]
[1772647819343,0.51504269,2150.3,2149.3,1.54724633]
[1772647820065,0.51504269,2150.3,2149.3,1.54824633]
[1772647821166,0.51504269,2150.3,2149.4,0.3852968]
[1772647822073,1.67770201,2150.3,2149.5,1.16306117]
[1772647823375,0.51504269,2150.2,2149.1,0.001]
[1772647823575,0.51504269,2150.0,2149.1,0.001]
[1772647823785,0.51504269,2149.8,2149.1,0.001]
[1772647823961,0.51504269,2149.6,2149.1,0.001]
[1772647824698,0.51504269,2149.6,2148.9,0.001]
[1772647824883,0.51504269,2149.4,2148.6,0.001]
[1772647825064,0.51504269,2149.2,2147.7,1.16401364]
[1772647825406,0.51504269,2149.0,2147.7,1.16401364]
[1772647825574,0.50025425,2148.8,2147.7,1.16401364]
[1772647825975,1.66374845,2148.7,2147.7,1.16401364]
[1772647826363,0.50025425,2148.6,2147.5,1.55389386]
[1772647827763,0.50025425,2148.6,2147.6,0.3908839]
[1772647827967,0.50025425,2148.6,2147.5,1.16411696]
[1772647828275,1.16359158,2148.6,2147.5,0.3908839]
[1772647828693,1.66384583,2148.6,2147.5,0.3908839]
[1772647829906,2.44453604,2148.7,2147.5,0.3908839]
[1772647830277,0.50025425,2148.6,2147.6,1.55605436]
[1772647830480,0.50025425,2148.6,2147.7,0.39249639]
[1772647830884,1.281,2148.7,2147.7,0.39249639]
[1772647831199,0.50025425,2148.9,2147.7,0.39249639]
[1772647831200,1.66364229,2148.9,2147.7,0.39249639]
[1772647831394,0.50025425,2148.9,2147.7,0.39249639]
[1772647831896,1.16332446,2149.1,2147.7,0.39249639]
[1772647832412,1.66357871,2149.1,2147.9,0.3930209]
[1772647832791,1.66357871,2149.1,2147.9,0.3940209]
[1772647833187,0.50025425,2149.0,2147.9,0.001]
[1772647833887,0.50025425,2148.8,2147.9,0.001]
[1772647834109,0.50025425,2148.6,2147.9,0.001]
[1772647834307,0.50025425,2148.4,2147.6,0.001]
[1772647834506,0.50025425,2148.2,2147.4,0.001]
[1772647834826,2.7653713,2148.3,2147.4,0.001]
[1772647834827,0.50025425,2148.0,2147.4,0.001]
[1772647834977,0.50025425,2147.8,2147.4,0.001]
[1772647836312,0.50025425,2147.8,2146.7,1.16457818]
[1772647836621,0.50025425,2147.6,2146.7,1.16457818]
[1772647836791,0.50025425,2147.6,2146.6,0.08988274]
[1772647836981,0.50025425,2147.6,2146.6,1.25450478]
[1772647837184,0.50025425,2147.6,2146.6,0.08988274]
[1772647837487,0.50025425,2147.6,2146.6,1.25451133]
[1772647838020,0.50025425,2147.6,2146.6,0.08988274]
[1772647838192,0.50025425,2147.6,2146.6,1.25450938]
[1772647838587,0.50025425,2147.4,2146.6,1.25450938]
[1772647840101,0.50025425,2147.7,2146.7,0.39747271]
[1772647840314,1.6643043,2147.7,2146.7,0.39747271]
[1772647840519,0.50025425,2147.6,2146.6,1.25450938]
[1772647840693,1.16414435,2147.5,2146.6,1.25450938]
[1772647841083,1.6643986,2147.5,2146.6,1.25450938]
[1772647841299,0.50025425,2147.4,2146.6,1.25450938]
[1772647842445,0.50025425,2147.4,2146.6,0.08988274]
[1772647842716,0.50025425,2147.2,2145.9,5.05948881]
[1772647842924,0.50025425,2147.0,2145.8,4.66010186]
[1772647844321,0.50025425,2147.0,2145.7,1.16508493]
[1772647844693,0.50025425,2146.8,2145.6,1.16517524]
[1772647844897,0.50025425,2146.8,2145.5,1.16519008]
[1772647845748,0.50025425,2146.8,2145.3,1.16533818]
[1772647846056,0.50025425,2146.4,2144.6,0.40067291]
[1772647846264,0.50025425,2145.8,2144.5,2.49184811]
[1772647846593,0.50025425,2145.8,2144.1,4.66386779]
[1772647846594,0.50025425,2145.4,2144.1,1.16599039]
[1772647846732,0.50025425,2145.4,2143.5,0.40107141]
[1772647846733,0.50025425,2145.0,2143.6,4.66501421]
[1772647847247,0.50025425,2144.8,2143.4,1.16637118]
[1772647847651,0.50025425,2144.8,2143.5,0.40211425]
[1772647848167,0.50025425,2144.8,2143.4,2.26637118]
[1772647848349,0.50025425,2144.8,2143.4,1.16637118]
[1772647848670,0.50025425,2144.8,2142.9,0.0853744]
[1772647848671,1.31525789,2144.5,2142.9,0.0853744]
[1772647848872,0.51872701,2144.4,2143.0,4.66617029]
[1772647849182,2.49128994,2143.9,2142.9,1.25201642]
[1772647849477,0.51872701,2143.8,2142.9,0.0853744]
[1772647849758,0.51872701,2143.8,2142.9,1.25201678]
[1772647850382,0.51872701,2144.2,2142.9,1.25201678]
[1772647850580,0.51872701,2144.2,2142.9,1.655635]
[1772647850781,0.51872701,2144.1,2142.9,1.655635]
[1772647850988,0.51872701,2144.1,2142.9,1.25201678]
[1772647851299,0.51872701,2143.9,2142.9,0.0853744]
[1772647851505,0.51872701,2143.7,2142.9,0.0853744]
[1772647852064,0.51872701,2143.7,2142.5,1.16684984]
[1772647852269,0.51872701,2143.7,2141.9,1.091]
[1772647852270,0.51872701,2143.1,2141.7,1.167297]
[1772647852574,0.51872701,2142.8,2141.7,1.167297]
[1772647852786,0.51872701,2142.8,2141.6,1.70387494]
[1772647852787,0.51872701,2142.6,2141.6,1.70387494]
[1772647853188,0.51872701,2142.6,2141.6,0.00972713]
[1772647853390,0.51872701,2142.6,2141.0,4.67062689]
[1772647853391,0.51872701,2141.4,2139.0,0.49933867]
[1772647853594,0.51872701,2142.2,2139.3,0.49933867]
[1772647853798,0.51872701,2141.8,2139.5,0.49933867]
[1772647854109,0.14948499,2141.7,2139.7,0.49933867]
[1772647854403,0.51872701,2141.8,2139.9,0.49933867]
[1772647854610,0.51872701,2141.7,2140.1,0.49933867]
[1772647854818,0.51872701,2141.7,2139.1,0.49933867]
[1772647854819,0.14948499,2141.1,2139.1,0.49933867]
[1772647854970,0.51872701,2141.2,2139.3,0.49933867]
[1772647855874,0.51872701,2141.0,2139.3,0.49933867]
[1772647856091,0.51872701,2140.8,2139.3,0.49933867]
[1772647856288,0.51872701,2140.6,2139.0,1.66810912]
[1772647856468,0.14948499,2141.1,2139.1,0.49933867]
[1772647856671,0.51872701,2141.2,2139.5,0.49933867]
[1772647856908,1.68631758,2141.2,2139.7,0.49933867]
[1772647857198,1.16740602,2141.5,2139.9,0.49933867]
[1772647857568,1.16740602,2141.5,2140.0,1.07]
[1772647857763,1.16740602,2141.5,2140.0,1.56933867]
[1772647857975,1.16740602,2141.5,2140.0,1.57133867]
[1772647858196,1.16740602,2141.5,2140.1,0.49933867]
[1772647858598,1.68613303,2141.5,2140.1,0.49933867]
[1772647859096,0.51872701,2141.4,2140.1,1.16916452]
[1772647859295,1.16740602,2141.5,2140.1,1.16916452]
[1772647859296,1.16740602,2141.5,2140.1,1.66850319]
[1772647859701,1.68613303,2141.5,2140.1,1.66850319]
[1772647860272,0.51872701,2141.4,2140.1,0.001]
[1772647860476,0.51872701,2140.8,2139.9,0.001]
[1772647860970,1.16784229,2140.7,2139.9,0.001]
[1772647861374,0.51872701,2140.6,2139.9,0.001]
[1772647861775,0.51872701,2140.6,2139.1,1.16871581]
[1772647862296,1.16784229,2140.7,2139.2,0.49933867]
[1772647862518,0.51872701,2140.6,2139.1,1.16871581]
[1772647863094,1.68667842,2140.5,2139.0,1.16877045]
[1772647863525,1.68667842,2140.5,2139.1,0.49933867]
[1772647863875,0.51872701,2140.4,2139.0,1.16877045]
[1772647864602,0.51872701,2140.4,2139.1,0.49933867]
[1772647864789,1.16791488,2140.6,2139.1,0.49933867]
[1772647865014,1.16787894,2140.7,2139.3,0.49933867]
[1772647866011,0.51872701,2140.6,2139.3,0.49933867]
[1772647866327,0.51872701,2140.6,2139.2,1.16866118]
[1772647867118,1.16795141,2140.5,2139.1,5.17398339]
[1772647867891,1.16773319,2140.9,2139.2,0.49933867]
[1772647868088,0.51872701,2140.8,2138.9,0.065536]
[1772647868291,0.51872701,2140.8,2137.7,0.49933867]
[1772647868292,0.065536,2139.6,2138.1,1.73766655]
[1772647868619,0.51872701,2139.7,2138.2,0.49933867]
[1772647869037,1.16844269,2139.6,2138.3,1.16915306]
[1772647869237,0.51872701,2139.5,2138.2,1.1691752]
[1772647869423,0.51872701,2139.3,2137.9,1.16937181]
[1772647869624,0.51872701,2139.1,2137.9,1.16937181]
[1772647869943,0.065536,2139.2,2137.6,0.49933867]
[1772647870118,0.51872701,2139.3,2137.6,0.49933867]
[1772647871021,0.51872701,2139.3,2137.6,1.60533867]
[1772647871342,0.51872701,2139.1,2137.7,1.16948121]
[1772647871554,0.51872701,2139.1,2137.7,1.66881988]
[1772647872004,1.16866118,2139.2,2138.4,0.001]
[1772647872209,1.41061392,2139.5,2138.4,0.001]
[1772647872210,1.16855193,2139.4,2138.4,0.001]
[1772647872432,2.57912778,2139.5,2138.4,0.001]
[1772647872939,0.89188691,2139.5,2138.4,0.001]
[1772647873120,2.06039204,2139.5,2138.4,0.50033867]
[1772647873313,2.06039204,2139.5,2138.5,1.16904372]
[1772647873719,0.51872701,2140.3,2138.6,0.413591]
[1772647873941,1.68682679,2140.3,2138.6,0.413591]
[1772647874440,0.51872701,2140.2,2138.6,0.413591]
[1772647874927,0.51872701,2140.2,2138.7,1.115]
[1772647875127,0.51872701,2140.2,2138.7,1.52958544]
[1772647875435,0.51872701,2140.0,2138.8,1.16887974]
[1772647876811,4.67267884,2140.2,2138.8,1.5854251]
[1772647876812,1.16815476,2140.2,2138.8,1.5854251]
[1772647877015,1.1680855,2140.3,2138.8,1.5854251]
[1772647877624,1.68876801,2140.4,2138.9,0.41751107]
[1772647877821,0.51872701,2140.3,2138.9,0.41751107]
[1772647878023,0.51872701,2140.3,2138.8,1.16887974]
[1772647878231,0.51872701,2140.1,2138.5,1.16904372]
[1772647878530,0.51872701,2140.1,2138.6,0.41941553]
[1772647878832,0.002,2140.4,2138.6,0.41941553]
[1772647879034,0.002,2140.4,2138.8,0.41941553]
[1772647879035,1.17000699,2140.4,2138.8,0.41941553]
[1772647879436,1.17001009,2140.4,2138.8,0.41941553]
[1772647879630,1.17001009,2140.4,2138.9,2.71116895]
[1772647879829,1.70579507,2140.4,2138.9,1.58916895]
[1772647880029,1.70579507,2140.4,2139.0,1.122]
[1772647880624,1.70579507,2140.4,2139.0,1.123]
[1772647881022,0.53778498,2140.4,2139.0,1.123]
[1772647882230,1.16806055,2140.3,2139.1,1.16871581]
[1772647882546,1.70579835,2140.4,2139.1,1.59022944]
[1772647882754,0.53778498,2140.4,2139.1,1.59022944]
[1772647882927,0.53778498,2140.4,2139.2,0.42241824]
[1772647882928,0.002,2140.4,2139.2,0.42241824]
[1772647883122,1.17001541,2140.4,2139.2,0.42241824]
[1772647883343,0.002,2140.4,2139.2,0.42241824]
[1772647883757,0.002,2140.6,2139.3,0.42331231]
[1772647883960,0.002,2140.9,2139.9,0.42131231]
[1772647884365,0.002,2140.9,2140.1,2.2698216]
[1772647885243,0.002,2140.9,2140.2,0.42306478]
[1772647886171,0.002,2140.9,2140.3,1.122]
[1772647886339,0.002,2140.9,2140.4,1.16800598]
[1772647887044,0.002,2140.9,2140.5,1.123]
[1772647887250,0.002,2140.6,2140.5,1.123]
[1772647887567,0.5309224,2141.6,2140.5,1.123]
[1772647887755,0.5309224,2141.6,2140.2,4.67239916]
[1772647887756,2.77200739,2141.5,2140.2,4.67239916]
[1772647888065,0.5309224,2141.4,2140.2,4.67239916]
[1772647888255,0.5309224,2141.0,2140.0,4.67278334]
[1772647888934,0.5309224,2141.0,2139.6,1.124]
[1772647888935,0.5309224,2141.0,2139.6,4.67376637]
[1772647889141,1.16751506,2141.3,2139.7,0.42646601]
[1772647889342,3.30339266,2141.2,2139.7,0.42646601]
[1772647889640,0.5309224,2141.1,2139.8,1.125]
[1772647890343,0.5309224,2141.1,2139.9,1.125]
[1772647890748,1.69855476,2141.1,2139.9,1.125]
[1772647890949,1.69854868,2141.1,2139.9,1.125]
[1772647891272,0.5309224,2141.1,2139.9,1.125]
[1772647891575,1.69855974,2141.1,2140.0,1.126]
[1772647891871,0.5309224,2141.1,2140.0,1.126]
[1772647892440,0.5309224,2141.1,2140.1,1.16816971]
[1772647893054,4.66972341,2141.5,2140.3,2.2698216]
[1772647893055,0.5309224,2141.5,2140.3,2.2698216]
[1772647893378,4.66894418,2141.9,2140.3,2.2698216]
[1772647893379,1.6981175,2141.9,2140.4,0.42969912]
[1772647894240,1.69811508,2141.9,2140.4,0.42969912]
[1772647894481,1.69811508,2141.9,2140.5,1.16795141]
[1772647894865,0.5309224,2141.8,2140.5,1.16795141]
[1772647895336,0.5309224,2141.8,2140.5,2.29495141]
[1772647895542,0.5309224,2141.8,2140.5,1.16795141]
[1772647896566,0.5309224,2141.6,2140.4,4.67180565]
[1772647897465,0.5309224,2142.0,2140.5,0.4329195]
[1772647897839,1.69784587,2142.4,2140.5,0.4329195]
[1772647898255,0.5309224,2142.3,2140.6,1.127]
[1772647898443,0.5309224,2142.1,2140.4,4.67180565]
[1772647898844,0.5309224,2141.9,2140.4,5.10547949]
[1772647899691,0.5309224,2141.7,2140.4,4.67180565]
[1772647899852,0.5309224,2141.7,2140.7,0.001]
[1772647900058,0.5329224,2141.6,2140.7,0.001]
[1772647900453,1.16740602,2141.5,2140.7,0.001]
[1772647901565,0.5329224,2141.6,2140.7,0.001]
[1772647901965,0.002,2141.6,2140.7,0.001]
[1772647902529,0.002,2141.6,2140.8,1.128]
[1772647902649,0.002,2141.6,2140.9,1.16773319]
[1772647903471,0.002,2141.6,2141.0,1.128]
[1772647903977,0.002,2141.8,2141.1,0.43596617]
[1772647904281,1.16673382,2142.8,2141.1,0.43596617]
[1772647904452,0.5309224,2142.7,2141.1,0.43596617]
[1772647904786,0.5309224,2142.3,2141.2,1.128]
[1772647905162,0.5309224,2142.3,2141.2,1.125]
[1772647905666,1.16690497,2142.5,2141.2,1.125]
[1772647905978,1.16690497,2142.5,2141.2,1.65870581]
[1772647906592,1.16690497,2142.5,2141.3,1.114]
[1772647906794,1.16690497,2142.5,2141.4,1.16746053]
[1772647907396,1.16684888,2142.6,2141.4,1.16746053]
[1772647908777,1.6977112,2142.7,2141.4,1.16746053]
[1772647908977,1.6977112,2142.7,2141.5,1.115]
[1772647909382,0.54855183,2142.6,2141.5,1.116]
[1772647910901,1.16666741,2142.9,2141.6,1.68128923]
[1772647911196,0.54855183,2143.0,2141.7,1.63093772]
[1772647911799,0.54855183,2143.0,2141.8,0.51393772]
[1772647912274,0.54855183,2143.2,2141.9,1.118]
[1772647912790,0.54855183,2143.2,2142.0,1.118]
[1772647912985,0.54855183,2143.0,2141.9,1.16718801]
[1772647913399,0.54855183,2142.8,2141.9,1.16718801]
[1772647914891,1.71508628,2143.1,2141.9,1.68112573]
[1772647915101,0.54855183,2143.1,2142.0,0.51393772]
[1772647915500,1.7150943,2143.1,2142.0,0.51393772]
[1772647915712,0.002,2142.6,2142.0,0.51393772]
[1772647916024,1.71508991,2143.1,2142.0,0.51393772]
[1772647916309,0.002,2142.9,2142.0,0.51393772]
[1772647917176,0.002,2142.9,2142.1,2.28807903]
[1772647919703,0.002,2142.9,2142.1,2.80201675]
[1772647919880,0.002,2142.9,2142.2,0.51393772]
[1772647920295,1.71481997,2143.6,2142.3,0.51393772]
[1772647920815,0.54855183,2144.0,2142.3,0.51393772]
[1772647920978,3.65731926,2144.1,2142.3,0.51393772]
[1772647921309,1.16590787,2144.3,2142.7,0.51393772]
[1772647921510,0.54855183,2144.4,2142.9,0.51393772]
[1772647921511,1.7144212,2144.4,2142.9,0.51393772]
[1772647921883,0.54855183,2144.3,2142.7,0.51393772]
[1772647922079,0.54855183,2144.3,2142.4,1.68085332]
[1772647922294,0.54855183,2144.1,2142.6,0.51393772]
[1772647922612,0.54855183,2144.1,2142.7,1.122]
[1772647922984,0.54855183,2144.1,2142.6,1.122]
[1772647923182,0.54855183,2143.7,2142.6,1.123]
[1772647924279,0.54855183,2143.7,2142.3,4.66766243]
[1772647924483,0.54855183,2143.7,2142.3,5.18160015]
[1772647925313,1.16626236,2143.6,2142.3,5.18160015]
[1772647925482,5.21351622,2143.7,2142.4,0.51393772]
[1772647925483,1.7148013,2143.7,2142.4,0.51393772]
[1772647925819,0.54855183,2143.6,2142.4,0.51393772]
[1772647926518,1.7148013,2143.7,2142.4,0.51393772]
[1772647926719,0.54855183,2143.6,2142.2,2.49166783]
[1772647926921,0.54855183,2143.6,2141.5,0.51393772]
[1772647927098,1.16624947,2143.7,2141.5,1.68130083]
[1772647927099,0.54855183,2143.2,2141.5,1.68130083]
[1772647927299,0.54855183,2143.0,2141.5,1.68130083]
[1772647927682,0.54855183,2143.0,2141.5,1.68134257]
[1772647927913,0.54855183,2143.0,2141.6,1.114]
[1772647929084,0.54855183,2143.0,2142.5,0.001]
[1772647929331,0.54855183,2143.0,2141.6,1.114]
[1772647930191,0.54855183,2142.8,2142.3,0.001]
[1772647932285,1.16674075,2142.8,2142.3,0.001]
[1772647932487,1.16653445,2143.1,2142.3,0.001]
[1772647932716,1.16631677,2143.5,2142.3,0.51493772]
[1772647932906,0.54855183,2143.4,2142.3,0.001]
[1772647933109,3.32779268,2143.3,2142.3,0.001]
[1772647933414,0.54855183,2143.3,2142.3,0.001]
[1772647934001,1.7148686,2143.5,2142.3,0.001]
[1772647934202,2.7800878,2143.4,2142.3,0.001]
[1772647934397,0.54855183,2143.2,2142.3,0.001]
[1772647934798,2.78089918,2143.1,2142.3,0.001]
[1772647935118,3.32945101,2143.1,2142.3,0.001]
[1772647935306,2.78089918,2143.0,2142.3,0.001]
[1772647935616,1.1664256,2143.3,2142.3,0.51493772]
[1772647935822,0.54855183,2143.5,2142.3,0.51493772]
[1772647935990,1.16631079,2143.6,2142.3,0.51493772]
[1772647936518,4.66494695,2143.7,2142.5,0.51393772]
[1772647936720,2.78105758,2143.6,2142.5,0.51393772]
[1772647937119,3.32960941,2143.6,2142.5,0.51393772]
[1772647937427,2.78169639,2143.5,2142.5,0.51393772]
[1772647937606,0.54855183,2143.6,2142.5,0.51393772]
[1772647938822,0.5470123,2143.4,2142.4,1.1669156]
[1772647939599,1.16631677,2143.5,2142.4,1.69230605]
[1772647941029,5.21227938,2143.6,2142.4,1.69230605]
[1772647941212,3.21786616,2143.5,2142.4,1.69230605]
[1772647941417,5.21227938,2143.6,2142.4,1.69230605]
[1772647941595,3.21802895,2143.5,2142.4,1.69230605]
[1772647941791,1.16614233,2143.9,2142.5,0.52539045]
[1772647941997,0.5470123,2144.1,2142.6,0.52539045]
[1772647942197,0.5470123,2143.9,2142.7,1.115]
[1772647942491,0.5470123,2143.9,2142.7,1.64039045]
[1772647942920,1.71316585,2143.8,2142.8,2.28169777]
[1772647943123,0.002,2144.3,2142.9,0.52539045]
[1772647943124,1.16596622,2144.2,2142.9,0.52539045]
[1772647943798,0.5470123,2144.1,2142.9,0.52539045]
[1772647944126,1.16596622,2144.2,2143.1,0.52539045]
[1772647944307,0.002,2143.6,2143.1,0.52539045]
[1772647945003,0.002,2143.6,2143.2,1.16648002]
[1772647945710,0.002,2144.3,2143.3,0.52232834]
[1772647946228,0.002,2144.3,2143.4,1.116]
[1772647946534,0.002,2144.3,2143.3,0.52232834]
[1772647946836,0.002,2144.3,2143.5,1.116]
[1772647947043,0.002,2144.3,2143.3,1.116]
[1772647947044,0.5302145,2144.1,2143.3,1.116]
[1772647947745,0.5302145,2144.1,2143.2,1.116]
[1772647948425,1.69811931,2144.3,2143.2,1.63832834]
[1772647948601,1.69811289,2144.3,2143.2,1.63832834]
[1772647948801,0.5322145,2144.3,2143.3,0.52232834]
[1772647949160,1.69809691,2144.3,2143.4,1.16637118]
[1772647949696,0.5302145,2144.2,2143.4,1.16637118]
[1772647949921,0.5302145,2144.2,2143.2,1.116]
[1772647951311,1.69620489,2144.1,2143.3,1.1664256]
[1772647951744,0.5302145,2144.0,2143.3,1.1664256]
[1772647953136,1.69619476,2144.2,2143.3,1.1664256]
[1772647953351,1.69619476,2144.2,2143.2,4.66570242]
[1772647953549,4.66570056,2144.3,2143.2,4.66570242]
[1772647953550,0.002,2144.3,2143.3,0.52232834]
[1772647953904,0.002,2144.3,2143.4,1.116]
[1772647954834,0.002,2144.3,2143.5,0.52232834]
[1772647955070,0.002,2144.3,2143.6,1.116]
[1772647955246,0.002,2144.3,2143.7,0.52232834]
[1772647955414,0.5302145,2145.1,2143.9,0.52232834]
[1772647956135,1.69570496,2145.1,2143.9,0.52232834]
[1772647956315,0.5302145,2145.1,2143.9,0.52232834]
[1772647956519,5.19142793,2145.4,2143.9,0.52232834]
[1772647956715,1.69553508,2145.4,2143.9,0.52232834]
[1772647957233,1.69553508,2145.4,2144.1,0.52232834]
[1772647957938,1.69553508,2145.4,2144.2,0.52232834]
[1772647958144,0.5302145,2145.3,2144.3,1.112]
[1772647958443,0.5302145,2145.3,2144.2,0.52232834]
[1772647958614,0.5302145,2145.3,2144.3,1.112]
[1772647958825,0.002,2144.6,2144.3,1.112]
[1772647959031,1.69543208,2145.6,2144.4,0.52232834]
[1772647959347,1.69540801,2145.6,2144.5,1.68810124]
[1772647959658,0.5302145,2145.6,2144.6,0.52232834]
[1772647959835,1.69539282,2145.6,2144.6,0.52232834]
[1772647960637,1.69539282,2145.6,2144.5,1.1657729]
[1772647960638,0.5302145,2145.5,2144.5,2.2777729]
[1772647961345,1.16528386,2145.4,2144.6,1.113]
[1772647962160,1.16528386,2145.4,2144.4,4.66309162]
[1772647962358,1.16528386,2145.4,2144.6,1.113]
[1772647962750,5.19120419,2145.5,2144.6,1.113]
[1772647962751,0.5302145,2145.5,2144.6,1.113]
[1772647963448,1.69537316,2145.7,2144.7,1.16566419]
[1772647963651,0.5302145,2145.7,2144.7,1.16566419]
[1772647964933,0.5302145,2145.7,2144.8,0.52232834]
[1772647965461,1.69521403,2146.0,2144.9,1.68788384]
[1772647965670,0.5302145,2146.0,2144.9,1.68788384]
[1772647965958,1.69517701,2146.0,2145.0,0.52232834]
[1772647966255,5.18969459,2146.2,2145.1,1.113]
[1772647966459,0.5302145,2146.1,2145.1,1.113]
[1772647966647,0.5302145,2146.1,2144.8,1.1655943]
[1772647967437,0.5302145,2145.9,2144.7,5.18484782]
[1772647967645,0.5302145,2145.9,2144.8,1.113]
[1772647969472,0.5302145,2145.9,2144.7,4.66251948]
[1772647969770,0.5302145,2145.9,2144.5,4.66265678]
[1772647969771,0.56539732,2145.5,2144.5,1.113]
[1772647970134,0.56539732,2145.5,2144.5,1.65848312]
[1772647970754,0.56539732,2145.5,2144.6,0.54548312]
[1772647970954,2.62715084,2145.6,2144.6,0.54548312]
[1772647971264,1.73046396,2145.8,2144.6,0.54548312]
[1772647971467,0.56539732,2145.8,2144.8,0.54548312]
[1772647971678,1.16512093,2145.7,2144.9,1.1655555]
[1772647972476,0.56539732,2145.6,2144.9,2.2785555]
[1772647972677,1.73244792,2145.9,2144.9,2.2785555]
[1772647972976,1.73244792,2145.9,2144.9,1.71103862]
[1772647973175,0.56539732,2145.8,2145.0,1.113]
[1772647973745,1.16512093,2145.7,2144.9,1.16550116]
[1772647973968,1.16512093,2145.7,2145.0,1.113]
[1772647974677,1.73046423,2145.8,2145.0,1.113]
[1772647975872,0.56539732,2145.5,2144.7,1.16664846]
[1772647977295,0.56539732,2145.5,2144.7,2.27964846]
[1772647977460,0.56539732,2145.5,2144.7,1.16664846]
[1772647977777,1.16528386,2145.4,2144.7,0.001]
[1772647977975,0.56539732,2145.3,2144.7,0.001]
[1772647978977,1.16528386,2145.4,2144.7,0.001]
[1772647979148,1.73057635,2145.6,2144.7,0.54648312]
[1772647979347,0.56539732,2145.5,2144.7,1.114]
[1772647980168,1.16528386,2145.4,2144.8,1.16560984]
[1772647980871,0.56539732,2145.3,2144.7,1.16664943]